bitfinex/quotes_ETHUSD_20210701
["timestamp","ask_amount","ask_price","bid_price","bid_amount"]
[1625169562104,3.57074,2099.9,2099.4,0.00612497]
[1625169562299,7.142,2099.7,2099.4,0.00612497]
[1625169564451,4.69534,2099.9,2099.4,0.00612497]
[1625169564551,3.57074,2099.9,2099.4,0.00612497]
[1625169564653,8.0,2100.0,2099.4,0.00612497]
[1625169564857,6.47074,2100.2,2099.4,0.00612497]
[1625169564957,2.9,2100.2,2099.4,0.00612497]
[1625169565559,10.008,2100.3,2099.4,0.00612497]
[1625169566059,3.9,2100.6,2099.4,0.00612497]
[1625169566209,10.7103,2100.3,2099.4,7.14591497]
[1625169566408,10.7103,2100.3,2099.4,12.15591497]
[1625169567109,3.57015,2100.3,2099.4,12.15591497]
[1625169568412,7.14054,2100.2,2099.4,12.15591497]
[1625169568510,7.14054,2100.2,2099.4,5.01612497]
[1625169568761,7.14054,2100.2,2099.4,0.00612497]
[1625169568863,7.14054,2100.2,2099.4,5.01612497]
[1625169569312,7.14054,2100.2,2099.4,0.00612497]
[1625169569414,12.06934,2100.2,2099.4,5.01612497]
[1625169569671,12.06934,2100.2,2099.4,0.00612497]
[1625169569672,3.57054,2100.0,2099.4,0.00612497]
[1625169569755,4.56644,2100.0,2099.4,0.00612497]
[1625169570552,7.14198,2099.7,2099.4,0.00612497]
[1625169570651,10.64648,2099.7,2099.4,0.00612497]
[1625169570801,15.35434,2099.7,2099.4,0.00612497]
[1625169570950,8.21236,2099.7,2099.4,0.00612497]
[1625169571904,7.07566,2099.7,2099.4,0.00612497]
[1625169572104,3.57116,2099.7,2099.4,0.00612497]
[1625169572811,7.30856,2099.7,2099.4,0.00612497]
[1625169573208,6.87972,2099.7,2099.4,0.00612497]
[1625169573358,7.90022,2099.7,2099.4,0.00612497]
[1625169574665,3.30856,2099.7,2099.4,0.00612497]
[1625169574811,9.52242,2100.0,2099.4,0.00612497]
[1625169574963,7.14139,2100.1,2099.4,0.00612497]
[1625169576457,7.14139,2100.1,2099.4,7.14666497]
[1625169576557,7.14139,2100.1,2099.4,12.15666497]
[1625169578464,7.14139,2100.1,2099.4,5.01612497]
[1625169578822,7.14139,2100.1,2099.4,0.00612497]
[1625169579469,11.04563,2100.0,2099.4,0.00612497]
[1625169579772,11.9048,2100.0,2099.4,0.00612497]
[1625169579872,0.12,2099.9,2099.4,0.00612497]
[1625169580266,16.73434,2100.0,2099.4,0.00612497]
[1625169580566,16.68434,2100.0,2099.4,0.00612497]
[1625169581056,21.69434,2100.0,2099.4,0.00612497]
[1625169581157,7.14193,2099.7,2099.4,0.00612497]
[1625169582810,16.66427,2099.9,2099.4,0.00612497]
[1625169583008,7.1417,2099.9,2099.4,0.00612497]
[1625169583310,9.52111,2100.2,2099.4,0.00612497]
[1625169583311,13.09116,2100.2,2099.4,0.00612497]
[1625169583459,3.57005,2100.2,2099.4,0.00612497]
[1625169583759,10.71031,2100.2,2099.4,7.14630497]
[1625169583909,3.57025,2100.1,2099.4,7.14630497]
[1625169584011,3.57025,2100.1,2099.4,12.15630497]
[1625169584113,3.57025,2100.1,2099.4,7.14630497]
[1625169584211,3.57054,2100.0,2099.4,0.00612497]
[1625169584310,5.90774,2100.0,2099.4,0.00612497]
[1625169584414,10.55324,2100.0,2099.4,0.00612497]
[1625169584809,18.55324,2100.0,2099.4,0.00612497]
[1625169584910,10.55324,2100.0,2099.4,0.00612497]
[1625169585008,18.55324,2100.0,2099.4,0.00612497]
[1625169585108,10.55324,2100.0,2099.4,0.00612497]
[1625169585210,7.14189,2099.7,2099.4,0.00612497]
[1625169586755,3.57106,2099.6,2099.4,0.00612497]
[1625169586957,3.57072,2099.9,2099.4,0.00612497]
[1625169588098,3.57046,2100.0,2099.1,7.02712497]
[1625169588250,3.57046,2100.0,2099.1,12.03712497]
[1625169588346,0.00612497,2099.9,2099.1,7.02712497]
[1625169588446,0.00612497,2099.9,2099.1,12.03712497]
[1625169589301,0.00612497,2099.9,2099.1,11.88712497]
[1625169590421,7.14712497,2099.9,2099.1,11.88712497]
[1625169590518,3.57058,2099.7,2099.1,11.88712497]
[1625169590721,3.57058,2099.7,2099.2,0.08]
[1625169591220,3.57058,2099.7,2099.1,12.02121355]
[1625169591519,3.57058,2099.7,2099.1,11.88712497]
[1625169592075,3.57058,2099.7,2099.3,7.14061]
[1625169592278,3.57058,2099.7,2099.3,12.15061]
[1625169592628,0.00612497,2099.9,2099.3,12.15061]
[1625169594589,0.00612497,2099.9,2099.3,5.01]
[1625169594835,0.00612497,2099.9,2099.1,0.13392142]
[1625169595030,0.00612497,2099.9,2099.0,8.94425674]
[1625169595283,7.14685497,2099.9,2099.3,7.14058]
[1625169595482,7.14685497,2099.9,2099.4,0.08]
[1625169595686,0.00612497,2099.9,2099.3,12.15058]
[1625169597834,0.00612497,2099.9,2099.3,7.14058]
[1625169597932,0.00612497,2099.9,2099.1,9.65469662]
[1625169597933,7.14690497,2099.9,2099.1,9.65469662]
[1625169598087,7.14690497,2099.9,2099.1,14.66469662]
[1625169599470,7.14690497,2099.9,2099.1,14.53041]
[1625169599570,7.14690497,2099.9,2099.1,9.52041]
[1625169599870,7.14690497,2099.9,2099.0,3.93500947]
[1625169599971,7.14690497,2099.9,2099.0,0.13500947]
[1625169600075,7.14690497,2099.9,2099.1,7.14145]
[1625169600172,7.14690497,2099.9,2098.9,0.13518629]
[1625169600372,7.14690497,2099.9,2099.0,0.13514256]
[1625169600471,7.14690497,2099.9,2099.0,0.21514256]
[1625169601280,7.14690497,2099.9,2099.3,7.14089]
[1625169601478,0.00612497,2099.9,2099.3,12.15089]
[1625169601585,0.00612497,2099.9,2099.3,5.01]
[1625169601831,0.00612497,2099.9,2099.3,2.62662594]
[1625169602031,0.00612497,2099.9,2099.3,7.63662594]
[1625169602131,0.00612497,2099.9,2099.4,0.08]
[1625169602331,13.2787,2100.7,2099.5,28.8]
[1625169602431,7.13934,2100.4,2099.8,7.13927]
[1625169602531,7.13934,2100.4,2099.8,16.01427]
[1625169605097,5.13934,2100.4,2099.8,16.01427]
[1625169605399,10.0787,2100.7,2099.8,8.875]
[1625169605499,11.0226,2100.8,2099.8,16.01427]
[1625169605500,7.13859,2100.6,2099.8,16.01427]
[1625169605603,11.90318,2100.8,2099.9,0.08]
[1625169605703,0.00608076,2101.1,2099.9,0.08]
[1625169605813,0.00608076,2101.1,2100.0,0.2]
[1625169606014,0.00608076,2101.1,2100.0,2.82662594]
[1625169606212,0.00608076,2101.1,2100.0,7.63662594]
[1625169606517,0.00608076,2101.1,2100.0,22.63662594]
[1625169606670,0.00608076,2101.1,2100.5,10.56116]
[1625169606771,0.00608076,2101.1,2100.5,25.56116]
[1625169606871,0.00608076,2101.1,2100.5,30.57116]
[1625169606964,0.42640223,2101.6,2100.6,30.3]
[1625169607065,0.00606678,2101.6,2100.7,15.0870721]
[1625169607264,0.00606678,2101.6,2100.7,20.2970721]
[1625169607466,0.00606678,2101.6,2100.9,0.02854691]
[1625169607566,0.00606678,2101.6,2100.9,15.02854691]
[1625169607665,0.00606678,2101.6,2101.2,3.5]
[1625169607768,0.00606678,2101.6,2101.3,15.0]
[1625169608058,0.00606678,2101.6,2101.4,0.2]
[1625169608506,6.72606678,2102.6,2101.5,32.31892968]
[1625169608608,6.72606678,2102.6,2101.6,0.09921881]
[1625169608808,6.72606678,2102.6,2101.7,0.2]
[1625169608910,6.72606678,2102.6,2101.7,4.6712]
[1625169609161,6.72606678,2102.6,2101.8,0.02161812]
[1625169609258,0.60430844,2103.1,2101.8,0.02161812]
[1625169609358,7.12943,2103.0,2102.2,0.01786502]
[1625169609458,7.12943,2103.0,2102.2,4.18956502]
[1625169609556,7.12943,2103.0,2102.6,0.01786502]
[1625169611054,7.12943,2103.0,2102.6,4.27106502]
[1625169612204,7.12943,2103.0,2102.6,9.28106502]
[1625169612407,7.12943,2103.0,2102.6,4.27106502]
[1625169612873,7.12943,2103.0,2102.6,9.28106502]
[1625169612979,0.60430844,2103.1,2102.6,9.28106502]
[1625169613078,0.60430844,2103.1,2102.7,0.16]
[1625169613523,0.60430844,2103.1,2102.7,15.16]
[1625169613672,0.60430844,2103.1,2102.7,2.78662594]
[1625169613776,7.47430844,2103.3,2102.8,15.0]
[1625169613875,7.47430844,2103.3,2102.8,15.2]
[1625169613974,0.60430844,2103.9,2102.9,30.1]
[1625169614078,0.60430844,2103.9,2103.0,15.0]
[1625169614274,0.60430844,2103.9,2103.0,5.21]
[1625169614803,0.60430844,2103.9,2103.2,4.81036502]
[1625169614905,0.60430844,2103.9,2103.4,0.01786502]
[1625169615252,7.12699,2103.8,2103.4,0.01786502]
[1625169615754,0.60430844,2103.9,2103.4,0.01786502]
[1625169616556,0.60430844,2103.9,2103.4,0.07786502]
[1625169616857,0.60430844,2103.9,2103.4,0.01786502]
[1625169617315,0.54326944,2103.5,2103.4,0.01786502]
[1625169617568,0.54326944,2103.5,2103.3,3.35283498]
[1625169617751,0.54326944,2103.5,2103.3,4.51493498]
[1625169617947,0.54326944,2103.5,2103.3,3.35283498]
[1625169618105,7.67113944,2103.5,2102.7,2.62662594]
[1625169618250,7.67113944,2103.5,2102.2,14.3885]
[1625169618251,0.54326944,2103.5,2102.2,13.2007]
[1625169618352,0.54326944,2103.5,2101.9,0.94733336]
[1625169618353,0.1,2103.4,2101.9,0.94733336]
[1625169618448,0.15,2103.3,2101.9,3.336e-05]
[1625169618603,0.00605277,2102.6,2101.8,0.00606391]
[1625169618849,0.06641367,2103.1,2101.8,0.00606391]
[1625169618952,1.0941,2102.9,2101.8,0.00606391]
[1625169619104,7.13435,2102.6,2101.8,0.00606391]
[1625169619198,9.97652649,2102.6,2101.8,0.00606391]
[1625169619336,14.98652649,2102.6,2101.8,0.00606391]
[1625169619437,0.04,2102.5,2101.8,0.00606391]
[1625169619584,0.15,2102.4,2101.8,0.00606391]
[1625169619687,0.05,2102.4,2101.8,0.00606391]
[1625169619783,2.87422847,2102.5,2101.8,0.00606391]
[1625169619983,5.16,2102.9,2101.8,0.00606391]
[1625169620135,0.15,2102.9,2101.8,0.00606391]
[1625169620235,15.13472,2102.6,2101.8,0.00606391]
[1625169620434,0.15,2102.5,2101.8,0.00606391]
[1625169620837,5.15,2102.5,2101.8,3.91e-06]
[1625169620937,0.12,2102.4,2101.8,3.91e-06]
[1625169621039,3.307,2102.4,2101.8,3.91e-06]
[1625169621188,0.15,2102.3,2101.8,3.91e-06]
[1625169621283,0.25,2102.3,2101.8,3.91e-06]
[1625169621683,0.04,2102.2,2101.8,3.91e-06]
[1625169621880,0.15,2102.1,2101.8,3.91e-06]
[1625169622432,7.1864,2102.1,2101.8,3.91e-06]
[1625169622584,0.04,2102.0,2101.8,3.91e-06]
[1625169622730,0.15,2101.9,2101.8,3.91e-06]
[1625169622940,2.87422847,2102.2,2101.8,3.91e-06]
[1625169623034,0.15,2102.5,2101.8,3.91e-06]
[1625169623138,0.09150087,2102.4,2101.8,3.91e-06]
[1625169623537,3.11572934,2102.4,2101.8,3.91e-06]
[1625169623637,5.95805385,2102.4,2101.8,3.91e-06]
[1625169623733,0.04,2102.3,2101.8,3.91e-06]
[1625169623881,0.15,2102.2,2101.8,3.91e-06]
[1625169624132,0.08,2102.1,2101.8,3.91e-06]
[1625169624377,0.21,2102.0,2101.8,3.91e-06]
[1625169625482,5.92655298,2102.0,2101.8,3.91e-06]
[1625169625578,10.93655298,2102.0,2101.8,3.91e-06]
[1625169625680,18.93655298,2102.0,2101.8,3.91e-06]
[1625169625784,0.12,2101.9,2101.8,3.91e-06]
[1625169626082,0.27,2101.9,2101.8,3.91e-06]
[1625169626583,0.15,2101.9,2101.8,3.91e-06]
[1625169626933,8.15,2101.9,2101.8,3.91e-06]
[1625169627083,5.16,2101.9,2101.8,3.91e-06]
[1625169627285,0.1,2101.9,2101.8,3.91e-06]
[1625169627383,5.11,2101.9,2101.8,3.91e-06]
[1625169627693,5.19,2101.9,2101.8,3.91e-06]
[1625169627786,0.18,2101.9,2101.8,3.91e-06]
[1625169627886,5.19,2101.9,2101.8,3.91e-06]
[1625169627989,5.11,2101.9,2101.8,3.91e-06]
[1625169628136,0.1,2101.9,2101.8,3.91e-06]
[1625169628318,5.11,2101.9,2101.8,3.91e-06]
[1625169628375,0.1,2101.9,2101.8,3.91e-06]
[1625169628474,5.11,2101.9,2101.8,3.91e-06]
[1625169628576,0.1,2101.9,2101.8,3.91e-06]
[1625169628674,5.23,2101.9,2101.8,1.068e-05]
[1625169628873,0.22,2101.9,2101.8,1.068e-05]
[1625169629029,0.1,2101.9,2101.8,1.068e-05]
[1625169630328,18.1964,2102.2,2101.8,1.068e-05]
[1625169630429,18.1964,2102.2,2101.8,3.87911068]
[1625169630586,7.13633,2102.3,2101.8,3.87911068]
[1625169631538,0.04,2102.2,2101.8,3.87911068]
[1625169631887,7.28633,2102.3,2101.8,3.87911068]
[1625169632088,12.29633,2102.3,2101.8,3.87911068]
[1625169632187,7.28633,2102.3,2101.8,3.87911068]
[1625169633150,1.39161866,2102.4,2101.8,3.82911068]
[1625169633445,0.00606391,2102.3,2101.8,3.82911068]
[1625169634299,9.51237,2102.1,2101.8,3.82911068]
[1625169634449,7.13417,2102.2,2101.8,8.83911068]
[1625169634657,0.00606391,2102.3,2101.9,0.18]
[1625169635564,0.00606391,2102.3,2102.0,0.06]
[1625169635670,0.51280759,2102.7,2102.2,30.1]
[1625169635772,1.06213018,2102.8,2102.3,45.1]
[1625169635877,1.06213018,2102.8,2102.3,18.6287]
[1625169635967,1.06213018,2102.8,2102.3,8.6387]
[1625169636066,1.06213018,2102.8,2102.4,0.2]
[1625169636616,1.06213018,2102.8,2102.4,4.4386]
[1625169636724,1.06213018,2102.8,2102.5,15.0]
[1625169636818,0.51885162,2103.3,2102.6,30.1]
[1625169636922,0.51280758,2103.7,2102.7,45.1]
[1625169637017,0.51280758,2103.7,2102.8,0.04726739]
[1625169637168,0.51280758,2103.7,2102.7,51.2695]
[1625169637264,0.51280758,2103.7,2102.8,0.02304215]
[1625169637491,0.51280758,2103.7,2102.8,0.22304215]
[1625169637693,0.51280758,2103.7,2102.8,0.2]
[1625169637788,0.09150087,2103.3,2102.8,0.21281044]
[1625169638039,0.09150087,2103.3,2102.9,0.2]
[1625169638143,0.09150087,2103.3,2102.9,4.6737]
[1625169638243,0.09150087,2103.3,2103.0,15.0]
[1625169638495,0.51280758,2103.7,2103.1,30.1]
[1625169638596,0.51280758,2103.7,2103.2,15.0]
[1625169638743,0.41280758,2103.7,2103.2,15.0]
[1625169638843,0.41280758,2103.7,2103.2,20.21]
[1625169638946,0.41280758,2103.7,2103.2,5.21]
[1625169639046,0.41280758,2103.7,2103.2,0.2]
[1625169639146,0.41280758,2103.7,2103.3,0.2]
[1625169639350,0.26280758,2103.7,2103.3,0.2]
[1625169639647,4.1793047,2104.0,2103.4,24.25]
[1625169639753,4.1793047,2104.0,2103.4,27.4301]
[1625169639847,4.1793047,2104.0,2103.4,8.1901]
[1625169640048,4.1793047,2104.0,2103.5,0.2]
[1625169640150,4.1793047,2104.0,2103.5,15.2]
[1625169640303,4.1793047,2104.0,2103.6,0.2]
[1625169641360,4.1793047,2104.0,2103.1,0.53173343]
[1625169641555,11.3058647,2104.0,2103.1,0.53173343]
[1625169642352,11.3058647,2104.0,2102.6,0.01244742]
[1625169642555,11.3058647,2104.0,2102.6,0.95356345]
[1625169642749,11.3058647,2104.0,2102.6,0.94111603]
[1625169642853,11.3058647,2104.0,2102.5,7.32702]
[1625169642952,11.3058647,2104.0,2102.5,0.2]
[1625169643053,11.3058647,2104.0,2102.6,0.16]
[1625169643157,4.1793047,2104.0,2102.6,0.16]
[1625169643353,4.1793047,2104.0,2103.7,0.11233414]
[1625169643703,4.1793047,2104.0,2102.4,10.39374194]
[1625169644052,4.1793047,2104.0,2102.4,15.40374194]
[1625169644156,11.3058647,2104.0,2102.4,15.40374194]
[1625169644256,28.1070647,2104.0,2102.4,15.3963]
[1625169644406,20.9805047,2104.0,2102.4,15.3963]
[1625169644606,20.9805047,2104.0,2103.2,0.00605016]
[1625169644804,24.5448247,2104.0,2103.2,0.00605016]
[1625169645004,0.15,2103.9,2103.2,0.00605016]
[1625169645103,0.21,2103.9,2103.2,0.00605016]
[1625169645305,3.56486,2103.8,2103.2,0.00605016]
[1625169645408,3.56561,2103.4,2103.2,0.00605016]
[1625169645556,8.42951,2103.4,2103.2,0.00605016]
[1625169645660,21.43951,2103.4,2103.2,1.6e-07]
[1625169645807,0.04,2103.3,2103.2,1.6e-07]
[1625169645909,0.04,2103.3,2102.7,0.00606023]
[1625169646003,3.56614,2103.1,2102.7,0.00606023]
[1625169646104,3.56608,2103.0,2102.7,0.00606023]
[1625169646204,4.60258,2103.0,2102.7,0.00606023]
[1625169647448,7.132,2102.9,2102.7,0.00606023]
[1625169648793,10.9123,2102.9,2102.7,0.00606023]
[1625169649044,3.7803,2102.9,2102.7,0.00606023]
[1625169649896,1.1527,2103.0,2102.7,0.00606023]
[1625169650247,7.13067,2103.1,2102.7,3.70046023]
[1625169650443,7.13067,2103.1,2102.7,3.8128481]
[1625169651389,28.85,2103.0,2102.2,0.00607207]
[1625169651541,33.86,2103.0,2102.2,0.00607207]
[1625169651642,33.8852,2103.0,2102.2,0.00607207]
[1625169651737,34.0052,2103.0,2102.2,0.00607207]
[1625169651986,33.8852,2103.0,2102.2,0.00607207]
[1625169652441,7.13199,2102.7,2102.2,0.00607207]
[1625169656992,20.50066023,2103.2,2102.2,0.00607207]
[1625169657138,20.50066023,2103.2,2102.2,0.1184789]
[1625169657488,7.13086,2103.0,2102.3,0.01070941]
[1625169657589,7.13086,2103.0,2102.2,0.1184789]
[1625169658439,11.92136,2103.0,2102.2,0.1184789]
[1625169658598,11.92136,2103.0,2102.2,0.0060789]
[1625169658784,3.68613,2102.9,2102.2,0.0060789]
[1625169658934,3.83613,2102.9,2102.2,0.0060789]
[1625169659036,8.84613,2102.9,2102.2,0.0060789]
[1625169659183,11.71613,2102.9,2102.2,0.0060789]
[1625169659285,16.72613,2102.9,2102.2,0.0060789]
[1625169659836,7.13393,2102.6,2102.2,0.0060789]
[1625169660204,9.51191,2102.7,2102.2,0.0060789]
[1625169660355,3.56613,2102.9,2102.2,0.0060789]
[1625169660703,3.56613,2102.9,2102.2,3.5251789]
[1625169660805,6.87606023,2103.2,2102.2,3.5251789]
[1625169660905,6.87606023,2103.2,2102.2,8.5351789]
[1625169661006,6.87606023,2103.2,2102.2,15.6647189]
[1625169661101,6.87606023,2103.2,2102.3,0.12]
[1625169661254,0.00606023,2103.2,2102.3,0.12]
[1625169661706,0.00606023,2103.2,2102.2,0.0060789]
[1625169661907,3.56552,2103.0,2102.2,0.0060789]
[1625169662006,7.13154,2102.7,2102.2,0.0060789]
[1625169662337,11.36024,2102.7,2102.2,0.0060789]
[1625169662684,3.56575,2102.6,2102.2,0.0060789]
[1625169664478,3.56575,2102.6,2102.2,0.11846303]
[1625169664733,0.60430846,2103.1,2102.2,2.73456303]
[1625169664840,0.60430846,2103.1,2102.3,15.0]
[1625169664982,0.60430846,2103.1,2102.3,15.2]
[1625169665133,0.60430846,2103.1,2102.3,20.21]
[1625169665533,0.60430846,2103.1,2102.3,27.33854]
[1625169665631,1.50533726,2103.1,2102.3,27.33854]
[1625169665832,1.50533726,2103.1,2102.4,0.16]
[1625169668388,1.50533726,2103.1,2102.5,0.03398477]
[1625169669494,1.50533726,2103.1,2102.4,76.68460868]
[1625169669746,1.50533726,2103.1,2102.5,0.04]
[1625169670049,3.726e-05,2103.1,2102.6,30.1]
[1625169670147,3.726e-05,2103.1,2102.7,15.0]
[1625169670250,3.726e-05,2103.1,2102.7,18.5371]
[1625169670397,3.726e-05,2103.1,2102.8,0.2]
[1625169671265,3.726e-05,2103.1,2102.8,7.32697]
[1625169671354,0.86954648,2103.6,2103.1,30.1]
[1625169671465,0.86954648,2103.6,2103.2,15.0]
[1625169671556,0.86954648,2103.6,2103.2,18.1902]
[1625169671662,0.09342015,2104.2,2103.3,30.1]
[1625169671771,0.09342015,2104.2,2103.4,15.0]
[1625169672003,0.09342015,2104.2,2103.4,20.01]
[1625169672204,0.09342015,2104.2,2103.5,0.18]
[1625169672405,0.01310315,2103.6,2103.5,7.3045]
[1625169672504,0.080317,2104.2,2103.6,14.98689685]
[1625169672661,0.09342015,2104.4,2103.8,30.1]
[1625169672758,0.09342015,2104.6,2103.9,30.1]
[1625169672868,0.09342015,2104.6,2103.9,45.08689685]
[1625169672954,0.09342015,2104.6,2103.9,58.29689685]
[1625169673258,0.01,2104.3,2104.0,0.2]
[1625169673556,0.01,2104.3,2104.0,3.1]
[1625169673656,0.01,2104.3,2104.1,14.98689685]
[1625169673752,0.01,2104.3,2104.1,22.10962685]
[1625169673855,0.01,2104.3,2104.1,27.11962685]
[1625169674004,0.01,2104.3,2104.2,29.15]
[1625169674104,0.01,2104.3,2104.2,44.13689685]
[1625169674207,0.01,2104.3,2104.2,49.14689685]
[1625169674302,0.01,2104.3,2104.2,20.19689685]
[1625169674508,0.01,2104.3,2104.2,5.21]
[1625169674605,3.15e-06,2104.5,2104.2,20.21]
[1625169674709,3.15e-06,2104.5,2104.2,15.2]
[1625169674808,3.15e-06,2104.5,2104.3,0.2]
[1625169676378,3.15e-06,2104.5,2104.4,0.1]
[1625169676534,3.15e-06,2104.5,2103.9,0.00604203]
[1625169676626,0.080317,2104.6,2103.9,0.00604203]
[1625169676724,0.03032015,2104.6,2103.9,0.00604203]
[1625169676930,0.03032015,2104.6,2104.0,0.04]
[1625169677178,7.12478,2104.4,2103.9,0.00604203]
[1625169677681,7.12478,2104.4,2104.3,5.5e-06]
[1625169678817,7.13146195,2104.4,2104.3,5.5e-06]
[1625169678921,7.13146195,2104.4,2104.0,0.18237913]
[1625169679016,12.14146195,2104.4,2104.0,0.18237913]
[1625169679169,17.76517336,2104.4,2104.0,0.18237913]
[1625169679271,15.65039336,2104.4,2104.0,0.18237913]
[1625169679368,16.72859336,2104.4,2104.0,0.18237913]
[1625169679470,0.08,2104.3,2104.0,0.18237913]
[1625169679571,3.6821,2104.3,2104.0,0.18237913]
[1625169679668,3.6821,2104.3,2103.5,0.01381665]
[1625169679768,12.25519,2104.3,2103.5,0.01381665]
[1625169680123,7.12879,2103.9,2103.5,0.01381665]
[1625169680335,10.6929,2103.9,2103.5,0.01381665]
[1625169680434,3.56411,2103.9,2103.5,0.01381665]
[1625169681039,9.50464,2104.3,2103.5,0.01381665]
[1625169681137,0.08699895,2104.4,2103.5,4.11001665]
[1625169681786,0.08699895,2104.4,2103.5,9.12001665]
[1625169681884,0.08699895,2104.4,2103.5,4.11001665]
[1625169681987,0.08699895,2104.4,2104.1,0.00604477]
[1625169682436,7.21258895,2104.4,2104.1,0.00604477]
[1625169683055,12.22258895,2104.4,2104.1,0.00604477]
[1625169683153,7.21258895,2104.4,2104.1,0.00604477]
[1625169685378,0.06,2104.3,2104.1,0.00604477]
[1625169685578,0.08699895,2104.4,2104.1,0.00604477]
[1625169686429,27.92679,2104.2,2104.1,0.00604477]
[1625169686631,7.12679,2104.2,2104.1,0.00604477]
[1625169689778,7.13339921,2104.2,2104.1,0.00604477]
[1625169689881,7.14000842,2104.2,2104.1,0.00604477]
[1625169690985,7.09000842,2104.2,2104.1,0.00604477]
[1625169691186,0.00660921,2104.2,2104.1,0.00604477]
[1625169691576,0.00660921,2104.2,2104.1,4.62594477]
[1625169691880,0.00660921,2104.2,2104.1,4.74594477]
[1625169692830,0.00660921,2104.2,2104.1,4.62594477]
[1625169696714,0.00660921,2104.2,2104.1,9.63594477]
[1625169696812,0.00660921,2104.2,2104.1,24.71594477]
[1625169697065,0.00660921,2104.2,2104.1,25.2476782]
[1625169697263,2.2837024,2104.7,2104.1,25.2476782]
[1625169697264,2.23296058,2104.7,2104.2,29.45]
[1625169697364,11.76369956,2105.2,2104.2,29.45]
[1625169697365,0.84810795,2104.9,2104.3,15.02731097]
[1625169697512,4.64122956,2105.2,2104.4,30.05815273]
[1625169697614,4.64122956,2105.2,2104.5,15.0421114]
[1625169697712,4.64122956,2105.2,2104.7,4.2]
[1625169697817,2.93024031,2105.2,2104.8,15.0]
[1625169697915,2.93024031,2105.2,2104.8,0.2]
[1625169698016,2.93024031,2105.2,2104.8,5.21]
[1625169698113,2.93024031,2105.2,2104.8,0.2]
[1625169698213,2.93024031,2105.2,2104.9,0.14]
[1625169699181,0.18355759,2105.4,2105.0,30.05]
[1625169699328,0.18355759,2105.4,2105.1,15.0]
[1625169699426,7.59e-06,2105.4,2105.1,15.0]
[1625169699529,1.705e-05,2105.6,2105.2,0.35]
[1625169699628,1.705e-05,2105.6,2105.2,4.5145]
[1625169699776,0.38182376,2105.7,2105.3,15.0]
[1625169699978,0.38182376,2105.7,2105.4,0.35]
[1625169700128,0.38182376,2105.7,2105.4,7.46714]
[1625169700277,0.38182376,2105.7,2105.5,0.2]
[1625169700278,3.76e-06,2105.7,2105.5,0.2]
[1625169700378,3.76e-06,2105.7,2105.5,15.2]
[1625169700644,6.91e-06,2105.7,2105.5,22.82216782]
[1625169700737,1.45e-05,2105.9,2105.5,22.82216782]
[1625169700893,0.19091187,2106.5,2105.6,30.25]
[1625169700988,1.87e-06,2106.5,2105.7,15.0]
[1625169701089,1.87e-06,2106.5,2105.7,24.96136874]
[1625169701194,1.87e-06,2106.5,2106.1,7.11462]
[1625169701292,7.59e-06,2106.2,2106.1,22.11462]
[1625169701390,7.59e-06,2106.2,2106.1,27.12462]
[1625169701491,7.59e-06,2106.2,2106.1,27.27462]
[1625169701687,7.59e-06,2106.2,2106.1,27.47462]
[1625169701791,1.87e-06,2106.5,2106.3,0.00599241]
[1625169701893,1.87e-06,2106.5,2106.2,0.9267]
[1625169702037,1.87e-06,2106.5,2106.4,0.15]
[1625169702490,1.87e-06,2106.5,2106.4,0.35]
[1625169703173,1.87e-06,2106.5,2106.4,2.97883449]
[1625169703271,1.87e-06,2106.5,2106.4,20.92778296]
[1625169703424,0.38182376,2107.0,2106.4,38.83618296]
[1625169703576,0.38182376,2107.0,2106.5,0.02872295]
[1625169703725,0.38182376,2107.0,2106.6,0.15]
[1625169703874,0.33182376,2107.0,2106.6,0.15]
[1625169703973,3.76e-06,2107.0,2106.6,0.15]
[1625169704074,3.76e-06,2107.0,2106.6,5.83423449]
[1625169704172,3.76e-06,2107.0,2106.7,15.2]
[1625169704274,3.76e-06,2107.0,2106.7,23.2]
[1625169704373,3.76e-06,2107.0,2106.7,28.16]
[1625169704474,3.76e-06,2107.0,2106.8,0.2]
[1625169705846,3.76e-06,2107.0,2106.7,0.53167677]
[1625169705847,3.76e-06,2107.0,2106.4,0.0318571]
[1625169706040,3.31020376,2107.0,2106.4,0.0318571]
[1625169706445,0.01387299,2106.9,2106.4,0.0318571]
[1625169706794,0.1,2106.8,2106.4,0.0318571]
[1625169706944,7.11833,2106.7,2106.4,0.0318571]
[1625169707473,0.01387299,2106.6,2106.4,0.0318571]
[1625169708644,4.14807299,2106.6,2106.4,0.0318571]
[1625169708740,4.1342,2106.6,2106.4,0.0318571]
[1625169708893,0.14,2106.5,2106.4,0.0318571]
[1625169709147,4.1342,2106.6,2106.4,0.0318571]
[1625169709245,0.01387299,2106.5,2106.4,0.0318571]
[1625169709749,0.01387299,2106.5,2105.7,0.00604085]
[1625169710052,3.0061391,2106.5,2105.7,0.00604085]
[1625169710402,8.0161391,2106.5,2105.7,0.00604085]
[1625169710499,11.0061391,2106.5,2105.7,0.00604085]
[1625169710599,0.09387299,2106.4,2105.7,0.00604085]
[1625169710759,0.09387299,2106.4,2104.8,0.02290321]
[1625169710760,0.01387299,2106.4,2105.6,0.00604504]
[1625169711652,1.3795,2106.5,2105.6,0.00604504]
[1625169712336,1.3795,2106.5,2105.6,4.37754504]
[1625169712438,0.01387299,2106.9,2105.7,15.0]
[1625169712734,0.01387299,2106.9,2105.6,8.34141218]
[1625169712832,0.01387299,2106.9,2105.6,13.35141218]
[1625169712942,7.11781,2106.8,2105.6,13.35141218]
[1625169713086,7.11781,2106.8,2105.6,10.59494504]
[1625169713384,0.12,2106.7,2105.6,10.59494504]
[1625169713499,3.55961,2106.6,2105.6,10.59494504]
[1625169713586,4.44521,2106.6,2105.6,4.37754504]
[1625169713940,0.01387299,2106.5,2105.6,0.00604504]
[1625169714177,7.11954,2106.1,2105.6,0.00604504]
[1625169716796,0.01387299,2106.2,2105.6,0.00604504]
[1625169717298,7.11954,2106.1,2105.6,0.00604504]
[1625169717895,0.01387299,2106.2,2105.6,0.00604504]
[1625169718296,0.01387299,2106.4,2105.6,0.00604504]
[1625169719424,7.13251299,2106.4,2105.6,0.00604504]
[1625169719878,0.01387299,2106.4,2105.6,0.00604504]
[1625169719982,9.89687,2107.0,2105.7,30.06463481]
[1625169720080,11.86425,2107.5,2105.8,15.0]
[1625169720230,2.71336352,2108.1,2105.9,0.34647585]